fUST/lending_fUST_20250624
["ID","MTS","AMOUNT","RATE_DAILY","PERIOD"]
[367255486,1750720233787,-846.53928378,0.00020551,10]
[367255487,1750720233797,-213.63163053,0.00020551,10]
[367255488,1750720233806,-524.09497732,0.00020551,10]
[367255489,1750720233816,-12553.69357174,0.00020551,10]
[367255490,1750720233825,-207.77,0.00020556,2]
[367255491,1750720233835,-325.16631042,0.00020568,2]
[367255492,1750720233845,-460.0,0.00020568,2]
[367255493,1750720233994,-463.6923709,0.00020569,2]
[367255494,1750720234005,-1242.15,0.00020569,2]
[367255495,1750720234014,-835.2,0.00020569,2]
[367255496,1750720234024,-460.0,0.00020569,2]
[367255497,1750720234034,-460.0,0.00020569,2]
[367255498,1750720234043,-528.45,0.00020569,2]
[367255499,1750720234052,-520.63,0.00020569,2]
[367255500,1750720234061,-471.33,0.00020569,2]
[367255501,1750720234071,-2415.12,0.000206,2]
[367255502,1750720234080,-1000.0,0.00020621,2]
[367255503,1750720234089,-500.0,0.00020624,2]
[367255504,1750720234098,-1000.0,0.00020624,2]
[367255505,1750720234107,-1000.0,0.00020624,2]
[367255506,1750720234116,-1000.0,0.00020724,2]
[367255507,1750720234126,-215.0738,0.0002074,2]
[367255508,1750720234136,-460.0,0.00020741,2]
[367255509,1750720234145,-460.0,0.00020741,2]
[367255510,1750720234155,-460.0,0.00020741,2]
[367255511,1750720234164,-460.0,0.00020741,2]
[367255512,1750720234174,-1000.0,0.0002076,2]
[367255513,1750720234184,-500.0,0.0002076,2]
[367255514,1750720234193,-500.0,0.00020798,2]
[367255515,1750720234203,-500.0,0.00020798,2]
[367255516,1750720234212,-460.0,0.00020842,2]
[367255517,1750720234221,-1242.15,0.00020843,2]
[367255518,1750720234231,-835.2,0.00020843,2]
[367255519,1750720234240,-460.0,0.00020843,2]
[367255520,1750720234250,-460.0,0.00020843,2]
[367255521,1750720234260,-528.45,0.00020843,2]
[367255522,1750720234269,-520.63,0.00020843,2]
[367255523,1750720234279,-471.33,0.00020843,2]
[367255524,1750720234289,-160.0,0.00020859,2]
[367255525,1750720234299,-213.63163053,0.00020859,2]
[367255526,1750720234308,-12553.69357174,0.00020859,2]
[367255527,1750720234318,-425.08510397,0.00020859,2]
[367255528,1750720234328,-836.70095952,0.00020859,2]
[367255529,1750720234338,-160.0,0.00020859,2]
[367255530,1750720234347,-160.0,0.00020859,2]
[367255531,1750720234358,-846.53928378,0.00020859,2]
[367255532,1750720234369,-230.18214666,0.00020859,2]
[367255533,1750720234378,-160.0,0.00020859,2]
[367255534,1750720234388,-160.0,0.00020859,2]
[367255535,1750720234397,-160.0,0.00020859,2]
[367255536,1750720234407,-420.0,0.00020922,2]
[367255537,1750720234417,-420.0,0.00020922,2]
[367255538,1750720234427,-168.0,0.00021005,2]
[367255539,1750720234436,-460.0,0.00021015,2]
[367255540,1750720234445,-460.0,0.00021015,2]
[367255541,1750720234455,-460.0,0.00021015,2]
[367255542,1750720234465,-460.0,0.00021015,2]
[367255543,1750720234475,-367.7426168,0.00021041,2]
[367255544,1750720234485,-730.4894966,0.00021041,2]
[367255545,1750720234494,-1821.488431,0.00021069,4]
[367255546,1750720234505,-1000.0,0.00021071,2]
[367255547,1750720234515,-168.0,0.00021082,2]
[367255548,1750720234524,-1000.0,0.00021088,2]
[367255549,1750720234534,-460.0,0.00021116,2]
[367255550,1750720234544,-1242.15,0.00021117,2]
[367255551,1750720234553,-835.2,0.00021117,2]
[367255552,1750720234563,-460.0,0.00021117,2]
[367255553,1750720234572,-577.7,0.00021117,2]
[367255554,1750720234582,-528.45,0.00021117,2]
[367255555,1750720234592,-520.63,0.00021117,2]
[367255556,1750720234602,-471.33,0.00021117,2]
[367255557,1750720234612,-1085.815,0.00021119,2]
[367255558,1750720234622,-177.794,0.00021119,2]
[367255559,1750720234632,-500.0,0.00021169,2]
[367255560,1750720234642,-623.88320114,0.00021172,2]
[367255561,1750720234653,-1500.0,0.00021172,2]
[367255562,1750720234663,-168.0,0.00021222,2]
[367255563,1750720234672,-1500.0,0.00021272,2]
[367255564,1750720234682,-460.0,0.00021289,2]
[367255565,1750720234692,-460.0,0.00021289,2]
[367255566,1750720234701,-521.41342497,0.00021289,2]
[367255567,1750720234711,-460.0,0.00021289,2]
[367255568,1750720234721,-2484.11268396,0.000213,2]
[367255569,1750720234730,-168.0,0.00021337,2]
[367255570,1750720234739,-295.24383781,0.0002139,2]
[367255571,1750720234749,-1242.15,0.00021391,2]
[367255572,1750720234759,-835.2,0.00021391,2]
[367255573,1750720234768,-460.0,0.00021391,2]
[367255574,1750720234778,-528.45,0.00021391,2]
[367255575,1750720234788,-520.63,0.00021391,2]
[367255576,1750720234797,-471.33,0.00021391,2]
[367255577,1750720234807,-588.23086793,0.00021399,2]
[367255578,1750720234816,-688.50859449,0.00021399,2]
[367255579,1750720234825,-688.50859449,0.00021399,2]
[367255580,1750720234835,-688.50859449,0.00021399,2]
[367255581,1750720234845,-688.50859449,0.00021399,2]
[367255582,1750720234855,-688.50859449,0.00021399,2]
[367255583,1750720234865,-688.50859449,0.00021399,2]
[367255584,1750720234874,-688.50859449,0.00021399,2]
[367255585,1750720234884,-688.50859449,0.00021399,2]
[367255586,1750720234894,-688.50859449,0.00021399,2]
[367255587,1750720234903,-688.50859449,0.00021399,2]
[367255588,1750720234913,-704.7087967,0.00021399,2]
[367255589,1750720234924,-704.7087967,0.00021399,2]
[367255590,1750720234942,-704.7087967,0.00021399,2]
[367255591,1750720234951,-704.7087967,0.00021399,2]
[367255592,1750720234961,-704.7087967,0.00021399,2]
[367255593,1750720234971,-704.7087967,0.00021399,2]
[367255594,1750720234981,-704.7087967,0.00021399,2]
[367255595,1750720234991,-698.90784015,0.00021399,2]
[367255596,1750720235001,-698.90784015,0.00021399,2]
[367255597,1750720235010,-698.90784015,0.00021399,2]
[367255598,1750720235020,-698.90784015,0.00021399,2]
[367255599,1750720235030,-698.90784015,0.00021399,2]
[367255600,1750720235040,-758.98939132,0.00021399,2]
[367255601,1750720235050,-758.98939132,0.00021399,2]
[367255602,1750720235060,-758.98939132,0.00021399,2]
[367255603,1750720235069,-90000.0,0.000214,3]
[367255604,1750720235079,-160.0,0.000214,3]
[367255605,1750720235089,-846.53928378,0.000214,3]
[367255606,1750720235098,-213.63163053,0.000214,3]
[367255607,1750720235108,-12553.69357174,0.000214,3]
[367255608,1750720235119,-500.0,0.00021435,2]
[367255609,1750720235129,-2484.11268396,0.0002145,2]
[367255610,1750720235139,-314999.77418022,0.00021499,2]
[367255621,1750720237831,-2315.07964025,0.000208,4]
[367255623,1750720237845,-798.3476449,0.000208,4]
[367255630,1750720237902,-3972.24515892,0.000208,4]
[367255632,1750720237913,-7085.67244395,0.000208,4]
[367255633,1750720237924,-7085.67244395,0.000208,4]
[367255634,1750720237942,-7085.67244395,0.000208,4]
[367255636,1750720237952,-7085.67244395,0.00020866,4]
[367255639,1750720237963,-7085.67244395,0.00021107,4]
[367255641,1750720237976,-7085.67244395,0.00021348,5]
[367255642,1750720237987,-102581.17876212,0.00021499,2]
[367255644,1750720238001,-2149.9458981,0.00021499,2]
[367255646,1750720238014,-1155.65066096,0.00021499,2]
[367255648,1750720238028,-5504.25082719,0.00021499,2]
[367255651,1750720238041,-1415887.55060071,0.00021499,2]
[367255653,1750720238058,-1070.16714045,0.00021499,2]
[367255655,1750720238070,-2092.5542019,0.00021499,2]
[367255947,1750720244890,-305.09383585,0.00021499,2]
[367260214,1750720289012,150.0,0.00021473,30]
[367260233,1750720289451,150.0,0.00022495,30]
[367261428,1750720362758,150.0,0.00021667,30]
[367261429,1750720435704,150.0,0.00020858,30]
[367261430,1750720452918,498.79886,0.00013699,2]
[367261432,1750720579918,5879.63170381,0.00018472,2]
[367261433,1750720579945,19020.36829619,0.00018472,2]
[367261436,1750720948830,207.23466,0.00018378,2]
[367261437,1750721140194,150.0,0.000189,2]
[367261438,1750721226324,-270.58139,0.00019178,2]
[367261439,1750721226346,-340.76176705,0.00019271,2]
[367261440,1750721226370,-300.0,0.00019368,2]
[367261441,1750721226393,-300.0,0.00019368,2]
[367261442,1750721226415,-300.0,0.00019369,2]
[367261443,1750721226436,-213.0,0.00019369,2]
[367261444,1750721226458,-1200.0,0.00019369,2]
[367261445,1750721226479,-460.0,0.00019369,2]
[367261446,1750721226500,-460.0,0.00019369,2]
[367261447,1750721226521,-460.0,0.0001937,2]
[367261448,1750721226542,-460.0,0.0001937,2]
[367261449,1750721226564,-460.0,0.0001937,2]
[367261450,1750721226585,-460.0,0.0001937,2]
[367261451,1750721226606,-460.0,0.0001937,2]
[367261452,1750721226629,-460.0,0.0001937,2]
[367261453,1750721226651,-460.0,0.0001937,2]
[367261454,1750721226671,-460.0,0.0001937,2]
[367261455,1750721226695,-460.0,0.0001937,2]
[367261456,1750721226717,-460.0,0.0001937,2]
[367261457,1750721226741,-460.0,0.0001937,2]
[367261458,1750721226762,-460.0,0.0001937,2]
[367261459,1750721226785,-460.0,0.0001937,2]
[367261460,1750721226808,-671.15,0.0001937,2]
[367261461,1750721226830,-460.0,0.0001937,2]
[367261462,1750721226852,-460.0,0.0001937,2]
[367261463,1750721226875,-460.0,0.0001937,2]
[367261464,1750721226899,-460.0,0.0001937,2]
[367261465,1750721226920,-420.0,0.0001937,2]
[367261466,1750721226942,-440.0,0.0001937,2]
[367261467,1750721226963,-460.0,0.0001937,2]
[367261468,1750721226984,-460.0,0.0001937,2]
[367261469,1750721227005,-460.0,0.0001937,2]
[367261470,1750721227027,-460.0,0.0001937,2]
[367261471,1750721227048,-460.0,0.0001937,2]
[367261472,1750721227071,-527.65,0.0001937,2]
[367261473,1750721227093,-460.0,0.0001937,2]
[367261474,1750721227114,-460.0,0.0001937,2]
[367261475,1750721227138,-494.38,0.0001937,2]
[367261476,1750721227160,-460.0,0.0001937,2]
[367261477,1750721227181,-460.0,0.0001937,2]
[367261478,1750721227202,-234.1331962,0.0001937,2]
[367261479,1750721247079,-216.0439189,0.0001937,2]
[367261480,1750721247101,-460.0,0.0001937,2]
[367261481,1750721247124,-460.0,0.0001937,2]
[367261482,1750721247146,-460.0,0.0001937,2]
[367261483,1750721247173,-460.0,0.0001937,2]
[367261484,1750721247201,-220.61350916,0.0001937,2]
[367261489,1750721363716,150.0,0.000189,2]
[367261544,1750721432147,-300.0,0.00019368,2]
[367261546,1750721432157,-1200.0,0.00019368,2]
[367261548,1750721432166,-460.0,0.00019369,2]
[367261550,1750721432176,-460.0,0.00019369,2]
[367261552,1750721432185,-460.0,0.00019369,2]
[367261554,1750721432194,-460.0,0.00019369,2]
[367261556,1750721432204,-460.0,0.00019369,2]
[367261558,1750721432213,-460.0,0.00019369,2]
[367261560,1750721432223,-461.84,0.00019369,2]
[367261562,1750721432232,-460.0,0.00019369,2]
[367261564,1750721432241,-460.0,0.00019369,2]
[367261566,1750721432251,-460.0,0.00019369,2]
[367261568,1750721432260,-460.0,0.00019369,2]
[367261570,1750721432269,-460.0,0.00019369,2]
[367261572,1750721432279,-543.31,0.00019369,2]
[367261574,1750721432288,-460.0,0.0001937,2]
[367261576,1750721432297,-460.0,0.0001937,2]
[367261579,1750721432307,-460.0,0.0001937,2]
[367261581,1750721432316,-1768.09,0.0001937,2]
[367261582,1750721432325,-599.07,0.0001937,2]
[367261584,1750721432334,-460.0,0.0001937,2]
[367261586,1750721432344,-460.0,0.0001937,2]
[367261587,1750721432354,-460.0,0.0001937,2]
[367261589,1750721432363,-460.0,0.0001937,2]
[367261591,1750721432372,-460.0,0.0001937,2]
[367261592,1750721432382,-460.0,0.0001937,2]
[367261593,1750721432391,-460.0,0.0001937,2]
[367261594,1750721432401,-460.0,0.0001937,2]
[367261595,1750721432410,-460.0,0.0001937,2]
[367261596,1750721432419,-460.0,0.0001937,2]
[367261597,1750721432428,-460.0,0.0001937,2]
[367261598,1750721432438,-390.0,0.0001937,2]
[367261599,1750721432450,-460.0,0.0001937,2]
[367261600,1750721432460,-460.0,0.0001937,2]
[367261601,1750721432469,-460.0,0.0001937,2]
[367261602,1750721432479,-757.23,0.0001937,2]
[367261603,1750721432489,-460.0,0.0001937,2]
[367261604,1750721432500,-460.0,0.0001937,2]
[367261605,1750721432509,-460.0,0.0001937,2]
[367261606,1750721432519,-460.0,0.0001937,2]
[367261607,1750721432528,-460.0,0.0001937,2]
[367261608,1750721432537,-460.0,0.0001937,2]
[367261609,1750721432546,-460.0,0.0001937,2]
[367261610,1750721432555,-460.0,0.0001937,2]
[367261611,1750721432566,-643.19,0.0001937,2]
[367261612,1750721432576,-460.0,0.0001937,2]
[367261613,1750721432585,-460.0,0.0001937,2]
[367261614,1750721432594,-460.0,0.0001937,2]
[367261615,1750721432605,-460.0,0.0001937,2]
[367261616,1750721432614,-460.0,0.0001937,2]
[367261617,1750721432624,-460.0,0.0001937,2]
[367261618,1750721432636,-460.0,0.0001937,2]
[367261619,1750721432645,-1146.64,0.0001937,2]
[367261620,1750721432654,-460.0,0.0001937,2]
[367261621,1750721432663,-460.0,0.0001937,2]
[367261622,1750721432672,-158.16539775,0.0001937,2]
[367261623,1750721432682,-460.0,0.0001937,2]
[367261624,1750721432691,-589.03705489,0.0001937,2]
[367261625,1750721432700,-524.83,0.0001937,2]
[367261626,1750721432710,-460.0,0.0001937,2]
[367261627,1750721432719,-460.0,0.0001937,2]
[367261628,1750721432728,-460.0,0.0001937,2]
[367261629,1750721432737,-451.90350909,0.0001937,2]
[367261630,1750721432746,-440.0,0.0001937,2]
[367261631,1750721432755,-460.0,0.0001937,2]
[367261632,1750721432765,-460.0,0.0001937,2]
[367261633,1750721432774,-460.0,0.0001937,2]
[367261634,1750721432783,-460.0,0.0001937,2]
[367261635,1750721432792,-460.0,0.0001937,2]
[367261636,1750721432801,-460.0,0.0001937,2]
[367261637,1750721432811,-667.95,0.0001937,2]
[367261639,1750721432821,-460.0,0.0001937,2]
[367261640,1750721432831,-460.0,0.0001937,2]
[367261641,1750721432842,-460.0,0.0001937,2]
[367261642,1750721432851,-460.0,0.0001937,2]
[367261643,1750721432860,-460.0,0.0001937,2]
[367261644,1750721432870,-282.64330607,0.0001937,2]
[367261645,1750721432879,-460.0,0.0001937,2]
[367261646,1750721432890,-576.57,0.0001937,2]
[367261647,1750721432899,-2761.9130548,0.0001937,2]
[367261648,1750721432909,-201.355,0.0001937,2]
[367261649,1750721432918,-409.53991634,0.0001937,2]
[367261650,1750721432927,-500.0,0.0001937,2]
[367261651,1750721432937,-500.0,0.0001937,2]
[367261652,1750721432946,-385.29727291,0.0001937,2]
[367261653,1750721432955,-252.20987311,0.0001937,2]
[367261654,1750721432965,-460.0,0.00019371,2]
[367261655,1750721432975,-460.0,0.00019371,2]
[367261656,1750721432985,-460.0,0.00019371,2]
[367261657,1750721432995,-460.0,0.00019371,2]
[367261658,1750721433004,-473.08945643,0.00019371,2]
[367261659,1750721433013,-460.0,0.00019371,2]
[367261660,1750721433023,-460.0,0.00019371,2]
[367261661,1750721433032,-460.0,0.00019371,2]
[367261662,1750721433042,-440.0,0.00019371,2]
[367261663,1750721433051,-440.0,0.00019371,2]
[367261664,1750721433060,-440.0,0.00019371,2]
[367261665,1750721433069,-1092.03,0.00019371,2]
[367261666,1750721433078,-460.0,0.00019371,2]
[367261667,1750721433088,-394.18,0.00019371,2]
[367261668,1750721433097,-460.0,0.00019371,2]
[367261669,1750721433106,-224.63,0.00019371,2]
[367261670,1750721433116,-192.36,0.00019371,2]
[367261671,1750721433125,-5143.44733516,0.00019371,2]
[367261672,1750721433141,-986.02,0.00019371,2]
[367261673,1750721433170,-460.0,0.0001937,2]
[367261674,1750721433180,-2465.79542973,0.00019371,2]
[367261684,1750721438123,-460.0,0.0001937,2]
[367261685,1750721438133,-556.31277407,0.00019371,2]
[367261686,1750721438143,-556.31277407,0.00019371,2]
[367261688,1750721438152,-151.0,0.00019371,2]
[367261690,1750721438161,-207.4,0.00019371,2]
[367261691,1750721438170,-1688.0,0.00019371,2]
[367261693,1750721438179,-500.0,0.00019371,2]
[367261695,1750721438188,-500.0,0.00019371,2]
[367261696,1750721438197,-127.37814295,0.00019371,2]
[367261698,1750721438209,-257.3189741,0.00019371,2]
[367261699,1750721438221,-115.30288295,0.00019371,2]
[367261700,1750721438230,-4837.58562943,0.00019371,2]
[367261701,1750721438246,-162.41437057,0.00019371,2]
[367261702,1750721438255,-9484.28982115,0.00019371,2]
[367261703,1750721438268,-6920.44741396,0.00019371,2]
[367261704,1750721438277,-460.0,0.00019472,2]
[367261705,1750721438286,-440.0,0.00019472,2]
[367261706,1750721438296,-460.0,0.00019643,2]
[367261707,1750721438305,-460.0,0.00019643,2]
[367261708,1750721438315,-460.0,0.00019643,2]
[367261709,1750721438324,-435.77200336,0.00019643,2]
[367261710,1750721438336,-107.53799664,0.00019643,2]
[367261711,1750721438346,-312.06383123,0.00019644,2]
[367261712,1750721438355,-153.55822293,0.00019644,2]
[367261713,1750721438371,-306.44177707,0.00019644,2]
[367261714,1750721438380,-460.0,0.00019644,2]
[367261715,1750721438390,-171.32644396,0.00019644,2]
[367261716,1750721438399,-460.0,0.00019644,2]
[367261717,1750721438412,-460.0,0.00019644,2]
[367261718,1750721438421,-375.98,0.00019644,2]
[367261719,1750721438431,-460.0,0.00019644,2]
[367261720,1750721438443,-460.0,0.00019644,2]
[367261721,1750721438454,-1768.09,0.00019644,2]
[367261722,1750721438464,-460.0,0.00019644,2]
[367261723,1750721438475,-371.08299602,0.00019644,2]
[367261724,1750721438484,-460.0,0.00019644,2]
[367261725,1750721438495,-490.92178167,0.00019644,2]
[367261726,1750721438505,-460.0,0.00019644,2]
[367261727,1750721438515,-460.0,0.00019644,2]
[367261728,1750721438523,-460.0,0.00019644,2]
[367261729,1750721438532,-460.0,0.00019644,2]
[367261730,1750721438542,-460.0,0.00019644,2]
[367261731,1750721438552,-460.0,0.00019644,2]
[367261732,1750721438561,-460.0,0.00019644,2]
[367261733,1750721438571,-460.0,0.00019644,2]
[367261734,1750721438582,-460.0,0.00019644,2]
[367261735,1750721438593,-460.0,0.00019644,2]
[367261736,1750721438602,-440.0,0.00019644,2]
[367261737,1750721438611,-757.23,0.00019644,2]
[367261738,1750721438620,-460.0,0.00019644,2]
[367261739,1750721438630,-460.0,0.00019644,2]
[367261740,1750721438639,-460.0,0.00019644,2]
[367261741,1750721438648,-460.0,0.00019644,2]
[367261742,1750721438658,-460.0,0.00019644,2]
[367261743,1750721438667,-460.0,0.00019644,2]
[367261744,1750721438677,-460.0,0.00019644,2]
[367261745,1750721438687,-643.19,0.00019644,2]
[367261746,1750721438697,-460.0,0.00019644,2]
[367261747,1750721438707,-460.0,0.00019644,2]
[367261748,1750721438717,-460.0,0.00019644,2]
[367261749,1750721438726,-460.0,0.00019644,2]
[367261750,1750721438736,-460.0,0.00019644,2]
[367261751,1750721438745,-460.0,0.00019644,2]
[367261752,1750721438754,-1146.64,0.00019644,2]
[367261753,1750721438763,-460.0,0.00019644,2]
[367261754,1750721438772,-460.0,0.00019644,2]
[367261755,1750721438781,-460.0,0.00019644,2]
[367261756,1750721438790,-524.83,0.00019644,2]
[367261757,1750721438799,-460.0,0.00019644,2]
[367261758,1750721438808,-460.0,0.00019644,2]
[367261759,1750721438817,-460.0,0.00019644,2]
[367261760,1750721438826,-490.02910138,0.00019644,2]
[367261761,1750721438835,-460.0,0.00019644,2]
[367261762,1750721438844,-460.0,0.00019644,2]
[367261763,1750721438854,-460.0,0.00019644,2]
[367261764,1750721438865,-460.0,0.00019644,2]
[367261765,1750721438876,-667.95,0.00019644,2]
[367261766,1750721438886,-460.0,0.00019644,2]
[367261767,1750721438895,-460.0,0.00019644,2]
[367261768,1750721438904,-460.0,0.00019644,2]
[367261769,1750721438913,-460.0,0.00019644,2]
[367261770,1750721438925,-460.0,0.00019644,2]
[367261771,1750721438935,-460.0,0.00019644,2]
[367261772,1750721438945,-460.0,0.00019644,2]
[367261773,1750721438954,-460.0,0.00019644,2]
[367261774,1750721438964,-460.0,0.00019645,2]
[367261775,1750721438974,-460.0,0.00019645,2]
[367261776,1750721438985,-460.0,0.00019645,2]
[367261777,1750721438996,-460.0,0.00019645,2]
[367261778,1750721439005,-460.0,0.00019645,2]
[367261779,1750721439015,-460.0,0.00019645,2]
[367261780,1750721439024,-440.0,0.00019645,2]
[367261781,1750721439035,-1092.03,0.00019645,2]
[367261782,1750721439046,-460.0,0.00019645,2]
[367261783,1750721439057,-223.93,0.00019645,2]
[367261784,1750721439066,-460.0,0.00019746,2]
[367261785,1750721439076,-460.0,0.00019917,2]
[367261786,1750721439085,-282.52,0.00019917,2]
[367261787,1750721439094,-460.0,0.00019917,2]
[367261788,1750721439104,-543.31,0.00019917,2]
[367261789,1750721439115,-460.0,0.00019918,2]
[367261790,1750721439125,-460.0,0.00019918,2]
[367261791,1750721439134,-460.0,0.00019918,2]
[367261792,1750721439143,-460.0,0.00019918,2]
[367261793,1750721439153,-460.0,0.00019918,2]
[367261794,1750721439173,-460.0,0.00019918,2]
[367261795,1750721439184,-1768.09,0.00019918,2]
[367261796,1750721439194,-460.0,0.00019918,2]
[367261797,1750721439204,-460.0,0.00019918,2]
[367261798,1750721439215,-460.0,0.00019918,2]
[367261799,1750721439224,-460.0,0.00019918,2]
[367261800,1750721439234,-460.0,0.00019918,2]
[367261801,1750721439243,-460.0,0.00019918,2]
[367261802,1750721439253,-460.0,0.00019918,2]
[367261803,1750721439263,-460.0,0.00019918,2]
[367261804,1750721439273,-484.61138794,0.00019918,2]
[367261805,1750721439282,-460.0,0.00019918,2]
[367261806,1750721439292,-460.0,0.00019918,2]
[367261807,1750721439302,-460.0,0.00019918,2]
[367261808,1750721439311,-757.23,0.00019918,2]
[367261809,1750721439321,-460.0,0.00019918,2]
[367261810,1750721439331,-460.0,0.00019918,2]
[367261811,1750721439341,-452.65379308,0.00019918,2]
[367261812,1750721439351,-460.0,0.00019918,2]
[367261813,1750721439360,-460.0,0.00019918,2]
[367261814,1750721439370,-460.0,0.00019918,2]
[367261815,1750721439380,-460.0,0.00019918,2]
[367261816,1750721439390,-643.19,0.00019918,2]
[367261817,1750721439399,-303.06454602,0.00019918,2]
[367261818,1750721439409,-460.0,0.00019918,2]
[367261819,1750721439419,-460.0,0.00019918,2]
[367261820,1750721439429,-460.0,0.00019918,2]
[367261821,1750721439438,-460.0,0.00019918,2]
[367261822,1750721439452,-460.0,0.00019918,2]
[367261823,1750721439461,-1146.64,0.00019918,2]
[367261824,1750721439471,-460.0,0.00019918,2]
[367261825,1750721439480,-460.0,0.00019918,2]
[367261826,1750721439490,-460.0,0.00019918,2]
[367261827,1750721439500,-524.83,0.00019918,2]
[367261828,1750721439509,-460.0,0.00019918,2]
[367261829,1750721439519,-460.0,0.00019918,2]
[367261830,1750721439529,-460.0,0.00019918,2]
[367261831,1750721439539,-460.0,0.00019918,2]
[367261832,1750721439548,-460.0,0.00019918,2]
[367261833,1750721439558,-460.0,0.00019918,2]
[367261834,1750721439568,-460.0,0.00019918,2]
[367261835,1750721439577,-667.95,0.00019918,2]
[367261836,1750721439587,-460.0,0.00019918,2]
[367261837,1750721439596,-460.0,0.00019918,2]
[367261838,1750721439605,-460.0,0.00019918,2]
[367261839,1750721439615,-278.50140578,0.00019918,2]
[367261840,1750721439624,-460.0,0.00019918,2]
[367261841,1750721439637,-460.0,0.00019918,2]
[367261842,1750721439647,-460.0,0.00019918,2]
[367261843,1750721439656,-460.0,0.00019918,2]
[367261844,1750721439665,-460.0,0.00019919,2]
[367261845,1750721439675,-460.0,0.00019919,2]
[367261847,1750721439684,-509.36747917,0.00019919,2]
[367261849,1750721439695,-460.0,0.00019919,2]
[367261850,1750721439705,-460.0,0.00019919,2]
[367261852,1750721439714,-460.0,0.00019919,2]
[367261853,1750721439724,-1092.03,0.00019919,2]
[367261854,1750721439734,-460.0,0.00019919,2]
[367261855,1750721439744,-5000.0,0.00019919,2]
[367261856,1750721439754,-1028.27368826,0.0002,20]
[367261857,1750721439763,-175.98,0.0002001,3]
[367261858,1750721439773,-527.94,0.0002001,3]
[367261860,1750721439783,-460.0,0.0002002,2]
[367261862,1750721439793,-172.99224575,0.00020059,2]
[367261863,1750721439803,-500.0,0.00020132,2]
[367261864,1750721439813,-498.79886,0.00020187,2]
[367261865,1750721439823,-460.0,0.00020191,2]
[367261866,1750721439832,-307.77,0.00020191,2]
[367261867,1750721439842,-543.31,0.00020191,2]
[367261868,1750721439852,-460.0,0.00020192,2]
[367261869,1750721439861,-460.0,0.00020192,2]
[367261870,1750721439871,-286.90949465,0.00020192,2]
[367261871,1750721439882,-460.0,0.00020192,2]
[367261872,1750721439891,-460.0,0.00020192,2]
[367261873,1750721439900,-460.0,0.00020192,2]
[367261874,1750721439910,-1768.09,0.00020192,2]
[367261875,1750721439919,-460.0,0.00020192,2]
[367261876,1750721439928,-460.0,0.00020192,2]
[367261877,1750721439938,-460.0,0.00020192,2]
[367261878,1750721439947,-460.0,0.00020192,2]
[367261879,1750721439957,-460.0,0.00020192,2]
[367261880,1750721439967,-460.0,0.00020192,2]
[367261881,1750721439976,-460.0,0.00020192,2]
[367261882,1750721439986,-460.0,0.00020192,2]
[367261883,1750721439995,-460.0,0.00020192,2]
[367261885,1750721440005,-460.0,0.00020192,2]
[367261887,1750721440015,-460.0,0.00020192,2]
[367261888,1750721440025,-757.23,0.00020192,2]
[367261889,1750721440034,-460.0,0.00020192,2]